lending/lending_fUSD_20260306
["ID","MTS","AMOUNT","RATE_DAILY","PERIOD"]
[407776153,1772791637576,423.63080618,9e-05,2]
[407776154,1772791638101,500.0,9e-05,2]
[407776155,1772791638426,500.0,9e-05,2]
[407776156,1772791638652,500.0,9e-05,2]
[407776157,1772791639773,642.1508271,9e-05,2]
[407776158,1772791639829,524.69213609,9e-05,2]
[407776159,1772791643859,500.0,9e-05,2]
[407776160,1772791644956,500.0,9e-05,2]
[407776161,1772791645801,500.0,9e-05,2]
[407776162,1772791647140,500.0,9e-05,2]
[407776163,1772791647354,500.0,9e-05,2]
[407776164,1772791647418,500.0,9e-05,2]
[407776165,1772791647641,512.4085473,9e-05,2]
[407776166,1772791647677,500.0,9e-05,2]
[407776167,1772791647835,633.60816571,9e-05,2]
[407776168,1772791648197,500.0,9e-05,2]
[407776169,1772791651146,500.0,9e-05,2]
[407776170,1772791651216,753.18977793,9e-05,2]
[407776171,1772791651380,500.0,9e-05,2]
[407776172,1772791651638,10.32973969,9e-05,2]
[407776173,1772791651659,489.67026031,9e-05,2]
[407776174,1772791651960,500.0,9e-05,2]
[407776175,1772791652400,500.0,9e-05,2]
[407776176,1772791652533,500.0,9e-05,2]
[407776177,1772791653059,500.0,9e-05,2]
[407776179,1772791653605,821.29738199,9e-05,2]
[407776182,1772791763098,-673.88788803,0.000119,2]
[407776183,1772791763118,-300.0,0.00011999,2]
[407776184,1772791763138,-150.0,0.00011999,2]
[407776185,1772791763159,-500.0,0.00012,2]
[407776186,1772791763180,-500.0,0.00012,2]
[407776187,1772791763202,-500.0,0.00012,2]
[407776188,1772791763223,-500.0,0.00012,2]
[407776189,1772791763243,-500.0,0.00012,2]
[407776190,1772791763265,-500.0,0.00012,2]
[407776191,1772791763286,-500.0,0.00012,2]
[407776192,1772791763310,-500.0,0.00012,2]
[407776193,1772791763333,-500.0,0.00012,2]
[407776194,1772791763355,-500.0,0.00012,2]
[407776195,1772791763376,-500.0,0.00012,2]
[407776196,1772791763726,-500.0,0.00012,2]
[407776197,1772791763765,-269.3417456,0.00012,2]
[407776198,1772791763786,-500.0,0.00012,2]
[407776199,1772791763807,-500.0,0.00012,2]
[407776200,1772791763836,-500.0,0.00012,2]
[407776201,1772791763863,-500.0,0.00012,2]
[407776202,1772791763896,-500.0,0.00012,2]
[407776203,1772791763925,-500.0,0.00012,2]
[407776204,1772791763946,-500.0,0.00012,2]
[407776205,1772791763978,-500.0,0.00012,2]
[407776206,1772791764003,-500.0,0.00012,2]
[407776207,1772791764026,-500.0,0.00012,2]
[407776208,1772791764048,-500.0,0.00012,2]
[407776209,1772791764073,-500.0,0.00012,2]
[407776210,1772791764100,-500.0,0.00012,2]
[407776211,1772791764119,-500.0,0.00012,2]
[407776212,1772791764145,-503.40655487,0.000121,2]
[407776213,1772791764170,-250.0,0.00013079,2]
[407776214,1772791764199,-300.0,0.00013172,2]
[407776215,1772791764223,-673.88788802,0.0001378,2]
[407776216,1772791764248,-514.0,0.00014,2]
[407776217,1772791764268,-200.0,0.00015,2]
[407776218,1772791764291,-0.31270544,0.00015,2]
[407776229,1772791831911,-308.33409821,0.000121,2]
[407776232,1772791831921,-249.0,0.000121,2]
[407776234,1772791831931,-263.21581534,0.000121,2]
[407776235,1772791831943,-236.78418466,0.000121,2]
[407776236,1772791831953,-500.0,0.000121,2]
[407776237,1772791831963,-869.94308692,0.00012648,2]
[407776238,1772791831977,-130.05691308,0.00012648,2]
[407776239,1772791831986,-1500.0,0.00013196,2]
[407776240,1772791831996,-250.0,0.0001331,2]
[407776241,1772791832006,-118.45051177,0.00013744,2]
[407776242,1772791832017,-1881.54948823,0.00013744,2]
[407776243,1772791832027,-2277.07778073,0.00014292,2]
[407776244,1772791832039,-222.92221927,0.00014292,2]
[407776245,1772791832050,-3000.0,0.0001484,2]
[407776246,1772791832060,-199.68729456,0.00015,2]
[407776247,1772791832071,-204.6,0.00015,2]
[407776248,1772791832081,-706.16,0.00015302,2]
[407776249,1772791832094,-333.15670856,0.00015388,2]
[407776250,1772791832104,-2416.74320608,0.00015571,2]
[407776251,1772791832115,-673.88788802,0.00015659,2]
[407776252,1772791832126,-300.0,0.00015659,2]
[407776254,1772791832137,-300.0,0.00015659,2]
[407776256,1772791832156,-300.0,0.00015659,2]
[407776258,1772791832174,-1200.0,0.00015659,2]
[407776260,1772791832184,-290.36989265,0.0001566,2]
[407776262,1772791832194,-660.38455071,0.0001566,2]
[407776264,1772791832208,-295.84742426,0.0001566,2]
[407776266,1772791832228,-237.90903018,0.00015671,2]
[407776268,1772791832239,-463.0,0.00015671,2]
[407776270,1772791832248,-706.16,0.00015684,2]
[407776272,1772791832258,-1434.94084587,0.00015689,2]
[407776276,1772791832283,-417.47915413,0.00015689,2]
[407776278,1772791832292,-6445.0,0.00015726,2]
[407776280,1772791832306,-248.83049513,0.0001575,2]
[407776282,1772791832315,-151.0,0.00015757,2]
[407776284,1772791832325,-500.0,0.00015759,2]
[407776285,1772791832338,-289.1730389,0.00015759,2]
[407776286,1772791832348,-391.98615521,0.00015759,2]
[407776287,1772791832358,-500.0,0.00015759,2]
[407776288,1772791832367,-500.0,0.00015759,2]
[407776289,1772791832377,-500.0,0.00015759,2]
[407776290,1772791832387,-198.85155453,0.00015759,2]
[407776291,1772791832397,-641.15093698,0.00015759,2]
[407776292,1772791832409,-641.15093698,0.00015759,2]
[407776293,1772791832421,-469.54843128,0.00015759,2]
[407776294,1772791832431,-641.15093698,0.00015759,2]
[407776295,1772791832442,-641.15093698,0.00015759,2]
[407776296,1772791832452,-641.15093698,0.00015759,2]
[407776297,1772791832462,-641.15093698,0.00015759,2]
[407776298,1772791832472,-641.15093698,0.00015759,2]
[407776299,1772791832481,-641.15093698,0.00015759,2]
[407776300,1772791832490,-641.15093698,0.00015759,2]
[407776301,1772791832500,-641.15093698,0.00015759,2]
[407776302,1772791832509,-641.15093698,0.00015759,2]
[407776303,1772791832519,-641.15093698,0.00015759,2]
[407776304,1772791832530,-641.15093698,0.00015759,2]
[407776305,1772791832540,-641.15093698,0.00015759,2]
[407776306,1772791832549,-641.15093698,0.00015759,2]
[407776307,1772791832559,-641.15093698,0.00015759,2]
[407776308,1772791832568,-641.15093698,0.00015759,2]
[407776309,1772791832578,-641.15093698,0.00015759,2]
[407776310,1772791832587,-641.15093698,0.00015759,2]
[407776311,1772791832596,-641.15093698,0.00015759,2]
[407776312,1772791832606,-641.15093698,0.00015759,2]
[407776313,1772791832616,-641.15093698,0.00015759,2]
[407776314,1772791832626,-641.15093698,0.00015759,2]
[407776315,1772791832635,-641.15093698,0.00015759,2]
[407776316,1772791832644,-641.15093698,0.00015759,2]
[407776317,1772791832654,-641.15093698,0.00015759,2]
[407776318,1772791832663,-641.15093698,0.00015759,2]
[407776319,1772791832672,-641.15093698,0.00015759,2]
[407776320,1772791832682,-641.15093698,0.00015759,2]
[407776321,1772791832691,-641.15093698,0.00015759,2]
[407776322,1772791832700,-641.15093698,0.00015759,2]
[407776323,1772791832709,-641.15093698,0.00015759,2]
[407776324,1772791832718,-641.15093698,0.00015759,2]
[407776325,1772791832728,-641.15093698,0.00015759,2]
[407776326,1772791832737,-641.15093698,0.00015759,2]
[407776327,1772791832747,-641.15093698,0.00015759,2]
[407776328,1772791832756,-641.15093698,0.00015759,2]
[407776329,1772791832765,-641.15093698,0.00015759,2]
[407776330,1772791832774,-641.15093698,0.00015759,2]
[407776331,1772791832783,-641.15093698,0.00015759,2]
[407776332,1772791832792,-641.15093698,0.00015759,2]
[407776333,1772791832801,-641.15093698,0.00015759,2]
[407776334,1772791832809,-641.15093698,0.00015759,2]
[407776335,1772791832818,-641.15093698,0.00015759,2]
[407776336,1772791832828,-641.15093698,0.00015759,2]
[407776337,1772791832837,-155.98252525,0.00015759,2]
[407776338,1772791832846,-641.15093698,0.00015759,2]
[407776339,1772791832855,-806.06658834,0.00015759,2]
[407776340,1772791832863,-806.06658834,0.00015759,2]
[407776341,1772791832872,-806.06658834,0.00015759,2]
[407776342,1772791832881,-806.06658834,0.00015759,2]
[407776343,1772791832890,-806.06658834,0.00015759,2]
[407776344,1772791832899,-806.06658834,0.00015759,2]
[407776345,1772791832916,-806.06658834,0.00015759,2]
[407776346,1772791832928,-806.06658834,0.00015759,2]
[407776347,1772791832937,-806.06658834,0.00015759,2]
[407776348,1772791832948,-806.06658834,0.00015759,2]
[407776349,1772791832957,-806.06658834,0.00015759,2]
[407776350,1772791832966,-806.06658834,0.00015759,2]
[407776351,1772791832975,-806.06658834,0.00015759,2]
[407776352,1772791832985,-806.06658834,0.00015759,2]
[407776353,1772791832994,-806.06658834,0.00015759,2]
[407776354,1772791833004,-806.06658834,0.00015759,2]
[407776355,1772791833014,-806.06658834,0.00015759,2]
[407776356,1772791833024,-806.06658834,0.00015759,2]
[407776357,1772791833033,-806.06658834,0.00015759,2]
[407776358,1772791833042,-806.06658834,0.00015759,2]
[407776359,1772791833052,-806.06658834,0.00015759,2]
[407776360,1772791833061,-806.06658834,0.00015759,2]
[407776361,1772791833070,-806.06658834,0.00015759,2]
[407776362,1772791833079,-806.06658834,0.00015759,2]
[407776363,1772791833089,-806.06658834,0.00015759,2]
[407776364,1772791833098,-806.06658834,0.00015759,2]
[407776365,1772791833107,-806.06658834,0.00015759,2]
[407776366,1772791833117,-806.06658834,0.00015759,2]
[407776367,1772791833126,-806.06658834,0.00015759,2]
[407776368,1772791833135,-787.35432825,0.00015759,2]
[407776369,1772791833145,-787.35432825,0.00015759,2]
[407776370,1772791833154,-787.35432825,0.00015759,2]
[407776371,1772791833163,-787.35432825,0.00015759,2]
[407776372,1772791833172,-787.35432825,0.00015759,2]
[407776373,1772791833182,-787.35432825,0.00015759,2]
[407776374,1772791833191,-787.35432825,0.00015759,2]
[407776375,1772791833202,-787.35432825,0.00015759,2]
[407776376,1772791833215,-787.35432825,0.00015759,2]
[407776377,1772791833224,-787.35432825,0.00015759,2]
[407776378,1772791833235,-787.35432825,0.00015759,2]
[407776379,1772791833246,-787.35432825,0.00015759,2]
[407776380,1772791833255,-787.35432825,0.00015759,2]
[407776381,1772791833265,-787.35432825,0.00015759,2]
[407776382,1772791833274,-1224.77339945,0.00015759,2]
[407776383,1772791833284,-1599493.82708128,0.0001576,2]
[407776384,1772791833298,-556.4256,0.0001576,2]
[407776385,1772791833322,-927.69623708,0.0001576,2]
[407776386,1772791833333,-748.00966555,0.0001576,2]
[407776387,1772791833344,-772.83593864,0.0001576,2]
[407776388,1772791833406,-27413.4132193,0.0001576,2]
[407776391,1772791838141,-790.24070377,0.0001566,2]
[407776392,1772791838156,-636.88586202,0.0001566,2]
[407776393,1772791838167,-1871.5005253,0.0001566,2]
[407776394,1772791838177,-663953.54483867,0.0001576,2]
[407776395,1772791838187,-160.0,0.0001576,3]
[407776396,1772791838197,-155.0,0.0001576,3]
[407776397,1772791838211,-163.0,0.0001576,3]
[407776398,1772791838220,-500.0,0.00015773,2]
[407776399,1772791838232,-500.0,0.00015773,2]
[407776400,1772791838242,-500.0,0.00015773,2]
[407776401,1772791838254,-500.0,0.00015773,2]
[407776402,1772791838264,-500.0,0.00015773,2]
[407776403,1772791838274,-500.0,0.00015773,2]
[407776404,1772791838283,-28559.0485,0.00015773,2]
[407776406,1772791838292,-151.0,0.00015773,2]
[407776408,1772791838301,-151.0,0.00015773,2]
[407776409,1772791838311,-200.0,0.00015863,2]
[407776410,1772791838322,-151.0,0.00015863,2]
[407776411,1772791838333,-151.0,0.00015863,2]
[407776412,1772791838343,-151.0,0.00015863,2]
[407776413,1772791838352,-151.0,0.00015863,2]
[407776414,1772791838362,-151.0,0.00015863,2]
[407776415,1772791838372,-151.0,0.00015863,2]
[407776416,1772791838381,-151.0,0.00015863,2]
[407776417,1772791838390,-500.0,0.00015863,2]
[407776418,1772791838399,-151.0,0.00015863,2]
[407776419,1772791838407,-500.0,0.00015863,2]
[407776420,1772791838416,-151.0,0.00015863,2]
[407776421,1772791838426,-500.0,0.00015863,2]
[407776422,1772791838435,-151.0,0.00015863,2]
[407776423,1772791838444,-151.0,0.00015863,2]
[407776424,1772791838453,-500.0,0.00015863,2]
[407776425,1772791838462,-500.0,0.00015863,2]
[407776426,1772791838472,-500.0,0.00015863,2]
[407776427,1772791838481,-500.0,0.00015863,2]
[407776428,1772791838491,-500.0,0.00015863,2]
[407776429,1772791838500,-229.55416592,0.00015863,2]
[407776430,1772791838510,-151.0,0.00015863,2]
[407776431,1772791838520,-151.0,0.00015863,2]
[407776432,1772791838529,-151.0,0.00015863,2]
[407776433,1772791838538,-151.0,0.00015863,2]
[407776434,1772791838548,-151.0,0.00015863,2]
[407776435,1772791838557,-151.0,0.00015863,2]
[407776436,1772791838566,-500.0,0.00015873,2]
[407776437,1772791838577,-148712.863237,0.00015873,2]
[407776438,1772791838586,-1582.6281572,0.00015873,2]
[407776439,1772791838596,-706.16,0.00016067,2]
[407776440,1772791838605,-660.38455071,0.00016131,2]
[407776441,1772791838616,-5000.0000965,0.000162,5]
[407776442,1772791838635,-7602.92,0.000162,2]
[407776443,1772791838655,-402.37041004,0.00016321,2]
[407776444,1772791838666,-1000.0,0.00016321,2]
[407776445,1772791838676,-1000.0,0.00016321,2]
[407776446,1772791838684,-1000.0,0.00016321,2]
[407776447,1772791838694,-200.0,0.0001634,2]
[407776448,1772791838705,-1000.0,0.00016421,2]
[407776449,1772791838715,-228.32,0.00016438,2]
[407776450,1772791838725,-706.16,0.00016449,2]
[407776451,1772791838735,-295.84742422,0.00016508,2]
[407776452,1772791838745,-362.32925749,0.000166,2]
[407776453,1772791838754,-660.38455071,0.00016602,2]
[407776454,1772791838762,-1409.7532,0.00016699,2]
[407776455,1772791838773,-166.34,0.00016712,2]
[407776456,1772791838784,-153.56,0.0001679,2]
[407776457,1772791838793,-1370.736,0.000168,2]
[407776458,1772791838801,-706.16,0.00016832,2]
[407776459,1772791838809,-1500.0,0.00016868,2]
[407776460,1772791838817,-1500.0,0.00016868,2]
[407776461,1772791838824,-1500.0,0.00016868,2]
[407776462,1772791838832,-2100.0,0.000169,3]
[407776463,1772791838840,-158.12247697,0.000169,2]
[407776464,1772791838848,-2000.0,0.000169,2]
[407776465,1772791838856,-1833.34,0.000169,2]
[407776466,1772791838863,-1500.0,0.00016968,2]
[407776467,1772791838872,-500.0,0.00016973,2]
[407776468,1772791838882,-500.0,0.00016973,2]
[407776469,1772791838892,-500.0,0.00016973,2]
[407776470,1772791838901,-150.0,0.00016973,2]
[407776471,1772791838910,-127858.74909909,0.00017,2]
[407776472,1772791838949,-2395.47115868,0.00017,2]
[407776477,1772791840279,-6789.28,0.00015302,2]
[407776478,1772791840288,-3353.88665938,0.00017,2]
[407776479,1772791840301,-12616.46240002,0.00017,2]
[407776480,1772791840314,-6428.03204122,0.00017,2]
[407776481,1772791840327,-8248.71074123,0.00017,2]
[407776487,1772791841126,-39118.73240512,0.00017,2]
[407776488,1772791841146,-8792.44010933,0.00017,2]
[407776489,1772791841158,-8947.21879473,0.00017,2]
[407776490,1772791841169,-8943.78386462,0.00017,2]
[407776491,1772791841182,-9077.54866152,0.00017,2]
[407776492,1772791841200,-352.805,0.00017,2]
[407776496,1772791843152,-89.49665816,0.00017,2]
[407776497,1772791843448,-155.39157999,0.00017,2]
[407776498,1772791843460,-39714.302661,0.00017,2]
[407776502,1772791846418,-6971.99999972,0.00017,2]
[407776503,1772791846673,-73615.92504903,0.00017,2]
[407776504,1772791846684,-152.09858182,0.00017,2]
[407776505,1772791846693,-300.0,0.00017,2]
[407776506,1772791846703,-200.0,0.00017,3]
[407776507,1772791846712,-151.0,0.00017,2]
[407776508,1772791846722,-306.88,0.00017041,2]
[407776509,1772791846734,-4548.448,0.00017041,2]
[407776510,1772791846745,-153.56,0.0001706,2]
[407776511,1772791846755,-5243.97,0.00017067,2]
[407776512,1772791846765,-1931.74,0.00017067,2]
[407776513,1772791846775,-220.91,0.00017067,2]
[407776514,1772791846785,-340.79,0.00017067,2]
[407776515,1772791846794,-2000.0,0.00017067,2]
[407776516,1772791846803,-660.38455071,0.00017073,2]
[407776517,1772791846813,-318.28338402,0.000171,2]
[407776518,1772791846822,-20501.45952783,0.0001711,2]
[407776519,1772791846831,-420.0,0.00017126,2]
[407776520,1772791846841,-238.0,0.00017126,2]
[407776521,1772791846851,-1680.0,0.00017213,2]
[407776522,1772791846860,-2966.56071772,0.00017226,2]
[407776523,1772791846869,-500.0,0.00017247,2]
[407776524,1772791846879,-153.56,0.0001733,2]
[407776525,1772791846889,-174.61919141,0.00017345,2]
[407776526,1772791846899,-219.73015263,0.00017345,2]
[407776527,1772791846909,-317.83390638,0.00017345,2]
[407776528,1772791846920,-1000.0,0.00017345,2]
[407776529,1772791846933,-1000.0,0.00017345,2]
[407776530,1772791846944,-1000.0,0.00017345,2]
[407776531,1772791846954,-1000.0,0.00017345,2]
[407776532,1772791846964,-1000.0,0.00017345,2]
[407776533,1772791846974,-1000.0,0.00017345,2]
[407776534,1772791846983,-1000.0,0.00017345,2]
[407776535,1772791846993,-1000.0,0.00017345,2]
[407776536,1772791847003,-1000.0,0.00017345,2]
[407776537,1772791847013,-500.0,0.00017345,2]
[407776538,1772791847024,-1000.0,0.00017345,2]
[407776539,1772791847034,-500.0,0.00017345,2]
[407776540,1772791847044,-1000.0,0.00017345,2]
[407776541,1772791847053,-500.0,0.00017345,2]
[407776542,1772791847063,-500.0,0.00017345,2]
[407776543,1772791847072,-500.0,0.00017345,2]
[407776544,1772791847082,-1000.0,0.00017345,2]
[407776545,1772791847091,-500.0,0.00017345,2]
[407776546,1772791847100,-500.0,0.00017345,2]
[407776547,1772791847109,-500.0,0.00017345,2]
[407776548,1772791847121,-500.0,0.00017345,2]
[407776549,1772791847130,-500.0,0.00017345,2]
[407776550,1772791847140,-500.0,0.00017345,2]
[407776551,1772791847149,-578.20924308,0.00017345,2]
[407776552,1772791847159,-209.40437685,0.00017345,2]
[407776553,1772791847168,-698.27174692,0.00017345,2]
[407776554,1772791847178,-693.3919763,0.00017345,2]
[407776555,1772791847188,-262.90206542,0.00017345,2]
[407776556,1772791847198,-151.0,0.00017345,2]
[407776557,1772791847214,-295.84742422,0.00017356,2]
[407776558,1772791847223,-719.04747942,0.000174,2]
[407776559,1772791847232,-2000.0,0.00017416,2]
[407776560,1772791847242,-785.42431869,0.00017416,2]
[407776561,1772791847253,-2000.0,0.00017416,2]
[407776562,1772791847263,-745.65223616,0.00017455,2]
[407776563,1772791847272,-514.0,0.00017474,5]
[407776564,1772791847283,-773.2413689,0.0001751,2]
[407776565,1772791847293,-2000.0,0.00017516,2]
[407776566,1772791847302,-1000.0,0.00017521,2]
[407776567,1772791847312,-793.77158202,0.00017521,2]
[407776568,1772791847321,-500.0,0.00017521,2]
[407776569,1772791847331,-500.0,0.00017533,2]
[407776570,1772791847341,-660.38455071,0.00017544,2]
[407776571,1772791847351,-801.85129955,0.00017565,2]
[407776572,1772791847360,-166.66,0.00017579,2]
[407776573,1772791847369,-153.56,0.000176,2]
[407776574,1772791847379,-831.51979763,0.0001762,2]
[407776575,1772791847388,-862.28603014,0.00017675,2]
[407776576,1772791847398,-894.19061326,0.0001773,2]
[407776577,1772791847407,-290.36989263,0.0001778,2]
[407776578,1772791847418,-927.27566595,0.00017785,2]
[407776579,1772791847428,-500.0,0.00017795,2]
[407776580,1772791847438,-961.58486559,0.0001784,2]
[407776581,1772791847448,-153.56,0.0001787,2]
[407776582,1772791847457,-181.08010149,0.00017893,2]
[407776583,1772791847466,-1000.0,0.00017893,2]
[407776584,1772791847476,-272.62944185,0.00017893,2]
[407776585,1772791847485,-997.16350561,0.00017895,2]
[407776586,1772791847495,-340.79,0.0001792,2]
[407776587,1772791847513,-1149.86978781,0.00017964,2]
[407776588,1772791847525,-2500.0,0.00017964,2]
[407776589,1772791847535,-5000.0,0.00018,2]
[407776590,1772791847546,-65578.74629306,0.00018,2]
[407776591,1772791847555,-308.62230826,0.00018,2]
[407776592,1772791847565,-1002.41225131,0.00018,2]
[407776593,1772791847575,-220.91,0.00018015,2]
[407776594,1772791847585,-660.38455071,0.00018016,2]
[407776595,1772791847595,-2219.58548492,0.00018064,2]
[407776596,1772791847606,-1500.0,0.00018068,2]
[407776597,1772791847616,-500.0,0.00018069,2]
[407776598,1772791847626,-1000.0,0.00018081,2]
[407776599,1772791847637,-153.56,0.0001814,2]
[407776600,1772791847647,-166.66,0.00018159,2]
[407776601,1772791847657,-295.84742422,0.00018204,2]
[407776602,1772791847668,-500.0,0.00018343,2]
[407776603,1772791847678,-500.0,0.00018354,2]
[407776604,1772791847687,-148712.863237,0.00018355,2]
[407776605,1772791847697,-2803.0,0.000184,2]
[407776606,1772791847708,-153.56,0.0001841,2]
[407776607,1772791847717,-1780.4566769,0.00018423,2]
[407776608,1772791847727,-187.78006525,0.00018441,2]
[407776609,1772791847736,-1000.0,0.00018441,2]
[407776610,1772791847746,-282.71673119,0.00018441,2]
[407776611,1772791847756,-5201.6158178,0.00018482,2]
[407776612,1772791847766,-2123.0,0.00018487,2]
[407776613,1772791847776,-660.38455071,0.00018487,2]
[407776614,1772791847785,-5000.0,0.000185,2]
[407776615,1772791847795,-1336.46733329,0.00018512,2]
[407776616,1772791847805,-500.0,0.00018575,2]
[407776617,1772791847814,-2000.0,0.00018616,2]
[407776618,1772791847825,-500.0,0.00018617,2]
[407776619,1772791847835,-1500.0,0.00018629,2]
[407776620,1772791847844,-2803.0,0.0001872,2]
[407776621,1772791847853,-587.0,0.00018731,2]
[407776622,1772791847863,-166.66,0.0001874,2]
[407776623,1772791847873,-340.79,0.00018774,2]
[407776624,1772791847883,-153.26719895,0.00018785,2]
[407776625,1772791847892,-500.0,0.00018891,2]
[407776626,1772791847902,-2351.0,0.00018921,2]
[407776627,1772791847912,-660.38455071,0.00018958,2]
[407776628,1772791847922,-220.91,0.00018963,2]
[407776629,1772791847932,-194.72792766,0.00018989,2]
[407776630,1772791847941,-1000.0,0.00018989,2]
[407776631,1772791847951,-1.66252534,0.00019,2]
[407776632,1772791871786,-503.0,0.00014,2]
[407776633,1772791871815,-200.0,0.00015,2]
[407776634,1772791871844,-1801.8231,0.00015302,2]
[407776635,1772791873067,-2504.8231,0.00015302,2]
[407776636,1772791874005,-2504.8231,0.00015302,2]
[407776637,1772791876105,-2504.8231,0.00015302,2]
[407776638,1772791877813,-2504.8231,0.00015302,2]
[407776639,1772791878793,-2504.8231,0.00015302,2]
[407776640,1772791880145,-1991.4114,0.00015302,2]
[407776641,1772791880166,-245.711289,0.000154,2]
[407776642,1772791880188,-151.0,0.00015757,2]
[407776643,1772791880208,-116.700411,0.00015873,2]
[407776644,1772791880837,-383.299589,0.00015873,2]
[407776645,1772791880858,-500.0,0.00015873,2]
[407776646,1772791880879,-500.0,0.00015873,2]
[407776647,1772791880899,-316.44451037,0.00016421,2]
[407776648,1772791880920,-805.07900063,0.00016421,2]
[407776649,1772791882009,-194.92099937,0.00016421,2]
[407776650,1772791882030,-1000.0,0.00016421,2]
[407776651,1772791882051,-1309.90210063,0.00016968,2]
[407776652,1772791883217,-190.09789937,0.00016968,2]
[407776653,1772791883241,-1500.0,0.00016968,2]
[407776654,1772791883263,-500.0,0.00016973,2]
[407776655,1772791883284,-150.0,0.00016973,2]
[407776656,1772791883307,-164.72520063,0.00017038,2]
[407776657,1772791884326,-2335.27479937,0.00017038,2]
[407776658,1772791884348,-169.54830063,0.00017038,2]
[407776659,1772791885313,-2330.45169937,0.00017038,2]
[407776660,1772791885336,-174.37140063,0.00017038,2]
[407776661,1772791904713,-2325.62859937,0.00017038,2]
[407776662,1772791904732,-179.19450063,0.00017038,2]
[407776663,1772791906669,-2504.8231,0.00015436,2]
[407776664,1772791908529,-966.87539091,0.00015436,2]
[407776665,1772791908551,-1537.94770909,0.00017038,2]
[407776666,1772791909656,-782.85779028,0.00017038,2]
[407776667,1772791909677,-1161.05460473,0.00017038,2]
[407776668,1772791909696,-500.0,0.00017247,2]
[407776669,1772791909716,-60.91070499,0.00017516,2]
[407776670,1772791937070,500.0,8e-05,2]
[407776671,1772791938698,-500.0,0.00012,2]
[407776672,1772791938719,-500.0,0.00012,2]
[407776673,1772791938739,-500.0,0.00012,2]
[407776674,1772791938760,-793.11223707,0.00012,2]
[407776675,1772791938781,-200.0,0.00015,2]
[407776676,1772791938802,-11.71086293,0.00015,2]
[407776677,1772791940663,-737.76465158,0.00012,2]
[407776678,1772791940692,-500.0,0.00012,2]
[407776679,1772791940714,-141.63913707,0.00015,2]
[407776680,1772791940737,-200.0,0.00016,3]
[407776681,1772791940760,-155.0,0.00017516,3]
[407776682,1772791940787,-770.41931135,0.00017516,2]
[407776683,1772791942457,-500.0,0.00012,2]
[407776684,1772791942479,-500.0,0.00012,2]
[407776685,1772791942499,-500.0,0.00012,2]
[407776686,1772791942520,-1004.8231,0.00017516,2]
[407776687,1772791942605,500.0,8e-05,2]
[407776688,1772791943100,500.0,8e-05,2]
[407776689,1772791944114,-163.84688366,0.00017516,2]
[407776690,1772791944138,-2000.0,0.00017516,2]
[407776691,1772791944160,-340.97621634,0.00017521,2]
[407776692,1772791945257,500.0,8e-05,2]
[407776693,1772791945556,545.98397172,8e-05,2]
[407776694,1772791948187,500.0,8e-05,2]
[407776695,1772791949112,-500.0,0.00012,2]
[407776696,1772791949135,-500.0,0.00012,2]
[407776697,1772791949173,-500.0,0.00012,2]
[407776698,1772791949198,-187.33587699,0.00017521,2]
[407776699,1772791949220,-817.48722301,0.0001785,2]
[407776700,1772791953323,-166.66,0.00014536,2]
[407776701,1772791953347,-166.66,0.00014843,2]
[407776702,1772791953371,-166.66,0.00015149,2]
[407776703,1772791953398,-166.66,0.00015455,2]
[407776704,1772791953422,-166.66,0.00015761,2]